bitfinex-derivatives/quotes_BTCF0:USTF0_20251025
["timestamp","ask_amount","ask_price","bid_price","bid_amount"]
[1761428176292,0.14532172,111440.0,111430.0,0.73144]
[1761428176692,0.14532172,111440.0,111430.0,0.37064]
[1761428176899,0.14532172,111440.0,111430.0,0.73144]
[1761428178700,0.32659365,111440.0,111430.0,0.91271193]
[1761428179494,0.32659365,111440.0,111430.0,0.55191193]
[1761428179695,0.32659365,111440.0,111430.0,0.91271193]
[1761428180501,0.14532172,111440.0,111430.0,0.91271193]
[1761428180702,0.32659365,111440.0,111430.0,0.91271193]
[1761428181397,0.32659365,111440.0,111430.0,0.73144]
[1761428181805,0.32659365,111440.0,111430.0,0.37064]
[1761428181998,0.32659365,111440.0,111430.0,0.73144]
[1761428183004,0.32659365,111440.0,111430.0,0.37064]
[1761428183302,0.32659365,111440.0,111430.0,0.73144]
[1761428183492,0.14532172,111440.0,111430.0,0.73144]
[1761428183694,0.32659365,111440.0,111430.0,0.73144]
[1761428184006,0.32659365,111440.0,111430.0,0.37064]
[1761428184305,0.32659365,111440.0,111430.0,0.73144]
[1761428185203,0.32659365,111440.0,111430.0,0.37064]
[1761428185405,0.32659365,111440.0,111430.0,0.73144]
[1761428186096,0.32659365,111440.0,111430.0,0.37064]
[1761428192915,0.32659365,111440.0,111430.0,0.55191193]
[1761428198415,0.32659365,111440.0,111430.0,0.53912193]
[1761428198621,0.32659365,111440.0,111430.0,0.55203193]
[1761428205330,0.32662104,111440.0,111430.0,0.55203193]
[1761428207530,0.14534911,111440.0,111430.0,0.55203193]
[1761428207931,0.13263911,111440.0,111430.0,0.55203193]
[1761428210634,0.13263911,111440.0,111430.0,0.37076]
[1761428211135,0.13264313,111440.0,111430.0,0.37076]
[1761428212533,0.31391506,111440.0,111430.0,0.37076]
[1761428212936,0.32779506,111440.0,111430.0,0.37076]
[1761428218441,0.31391506,111440.0,111430.0,0.37076]
[1761428221442,0.13264313,111440.0,111430.0,0.37076]
[1761428222442,0.49344313,111440.0,111430.0,0.37076]
[1761428224747,0.67471506,111440.0,111430.0,0.37076]
[1761428227047,0.49344313,111440.0,111430.0,0.37076]
[1761428227751,0.67471506,111440.0,111430.0,0.37076]
[1761428228056,0.31391506,111440.0,111430.0,0.37076]
[1761428228257,0.67471506,111440.0,111430.0,0.37076]
[1761428229060,0.31391506,111440.0,111430.0,0.37076]
[1761428229250,0.67471506,111440.0,111430.0,0.37076]
[1761428229558,0.49344313,111440.0,111430.0,0.37076]
[1761428232362,0.13264313,111440.0,111430.0,0.37076]
[1761428232570,0.49344313,111440.0,111430.0,0.37076]
[1761428232861,0.13264313,111440.0,111430.0,0.37076]
[1761428233066,0.49344313,111440.0,111430.0,0.37076]
[1761428233768,0.49344313,111440.0,111430.0,0.55203193]
[1761428236773,0.13264313,111440.0,111430.0,0.55203193]
[1761428236972,0.49344313,111440.0,111430.0,0.55203193]
[1761428238068,0.13264313,111440.0,111430.0,0.55203193]
[1761428238273,0.49344313,111440.0,111430.0,0.55203193]
[1761428238976,0.13264313,111440.0,111430.0,0.55203193]
[1761428239371,0.49344313,111440.0,111430.0,0.55203193]
[1761428240669,0.49344313,111440.0,111430.0,0.37076]
[1761428242478,0.13264313,111440.0,111430.0,0.37076]
[1761428242668,0.49344313,111440.0,111430.0,0.37076]
[1761428243477,0.13264313,111440.0,111430.0,0.37076]
[1761428243776,0.49344313,111440.0,111430.0,0.37076]
[1761428245970,0.50674313,111440.0,111430.0,0.37076]
[1761428246678,0.4745459,111440.0,111430.0,0.37076]
[1761428248582,0.1137459,111440.0,111430.0,0.37076]
[1761428248777,0.4745459,111440.0,111430.0,0.37076]
[1761428249381,0.1137459,111440.0,111430.0,0.37076]
[1761428249580,0.4745459,111440.0,111430.0,0.37076]
[1761428252083,0.1137459,111440.0,111430.0,0.37076]
[1761428252278,0.4745459,111440.0,111430.0,0.37076]
[1761428252584,0.1137459,111440.0,111430.0,0.37076]
[1761428252776,0.4745459,111440.0,111430.0,0.37076]
[1761428253283,0.50674313,111440.0,111430.0,0.37076]
[1761428253475,0.48256672,111440.0,111430.0,0.37076]
[1761428255085,0.50674619,111440.0,111430.0,0.37076]
[1761428256883,0.14594619,111440.0,111430.0,0.37076]
[1761428257084,0.50674619,111440.0,111430.0,0.37076]
[1761428259380,0.14594619,111440.0,111430.0,0.37076]
[1761428259585,0.50674619,111440.0,111430.0,0.37076]
[1761428260184,0.14594619,111440.0,111430.0,0.37076]
[1761428260388,0.50674619,111440.0,111430.0,0.37076]
[1761428262993,0.14594619,111440.0,111430.0,0.37076]
[1761428263186,0.50674619,111440.0,111430.0,0.37076]
[1761428263986,0.14594619,111440.0,111430.0,0.37076]
[1761428264188,0.50674619,111440.0,111430.0,0.37076]
[1761428265195,0.14594619,111440.0,111430.0,0.37076]
[1761428265494,0.50674619,111440.0,111430.0,0.37076]
[1761428265690,0.14594619,111440.0,111430.0,0.37076]
[1761428265894,0.50674619,111440.0,111430.0,0.37076]
[1761428266997,0.14594619,111440.0,111430.0,0.37076]
[1761428267197,0.50674619,111440.0,111430.0,0.37076]
[1761428267997,0.14594619,111440.0,111430.0,0.37076]
[1761428268490,0.50674619,111440.0,111430.0,0.37076]
[1761428269203,0.14594619,111440.0,111430.0,0.37076]
[1761428269503,0.50674619,111440.0,111430.0,0.37076]
[1761428270100,0.14594619,111440.0,111430.0,0.37076]
[1761428270302,0.50674619,111440.0,111430.0,0.37076]
[1761428271201,0.14594619,111440.0,111430.0,0.37076]
[1761428271505,0.50674619,111440.0,111430.0,0.37076]
[1761428272304,0.14594619,111440.0,111430.0,0.37076]
[1761428272505,0.50674619,111440.0,111430.0,0.37076]
[1761428273109,0.14594619,111440.0,111430.0,0.37076]
[1761428273308,0.50674619,111440.0,111430.0,0.37076]
[1761428274514,0.14594619,111440.0,111430.0,0.37076]
[1761428275109,0.50674619,111440.0,111430.0,0.37076]
[1761428276712,0.14594619,111440.0,111430.0,0.37076]
[1761428277109,0.50674619,111440.0,111430.0,0.37076]
[1761428280510,0.63566654,111440.0,111430.0,0.35785]
[1761428280718,0.05686,111430.0,111420.0,0.36083274]
[1761428280927,0.05686,111420.0,111410.0,0.36279]
[1761428281113,0.61101122,111420.0,111410.0,0.0033]
[1761428281307,0.65754675,111420.0,111410.0,0.0033]
[1761428282315,0.62531311,111420.0,111410.0,0.0033]
[1761428282921,0.65754675,111420.0,111410.0,0.02586]
[1761428283107,0.62531311,111420.0,111410.0,0.02586]
[1761428283513,0.62731311,111420.0,111410.0,0.02586]
[1761428283710,0.46619553,111420.0,111410.0,0.04885]
[1761428284114,0.10539553,111420.0,111410.0,0.06246]
[1761428284311,0.46619553,111420.0,111410.0,0.06246]
[1761428284523,0.46619553,111420.0,111410.0,0.04885]
[1761428290026,0.10539553,111420.0,111410.0,0.04885]
[1761428290323,0.46619553,111420.0,111410.0,0.04885]
[1761428290526,0.06733949,111420.0,111410.0,0.06246]
[1761428292531,0.08071949,111420.0,111410.0,0.06246]
[1761428293734,0.44151949,111420.0,111410.0,0.06246]
[1761428294735,0.08071949,111420.0,111410.0,0.06246]
[1761428300839,0.26205142,111420.0,111410.0,0.24379193]
[1761428301837,0.28619746,111420.0,111410.0,0.24379193]
[1761428306238,0.10486553,111420.0,111410.0,0.24379193]
[1761428308239,0.13709917,111420.0,111410.0,0.24379193]
[1761428308435,0.13709917,111420.0,111410.0,0.23018193]
[1761428308640,0.49789917,111420.0,111410.0,0.23018193]
[1761428309041,0.6792311,111420.0,111410.0,0.23018193]
[1761428309844,0.3184311,111420.0,111410.0,0.23018193]
[1761428310045,0.6792311,111420.0,111410.0,0.23018193]
[1761428311343,0.3184311,111420.0,111410.0,0.23018193]
[1761428314450,0.3184311,111420.0,111410.0,0.24301193]
[1761428315548,0.13709917,111420.0,111410.0,0.24301193]
[1761428315750,0.3184311,111420.0,111410.0,0.24301193]
[1761428317550,0.13709917,111420.0,111410.0,0.24301193]
[1761428321463,0.11295313,111420.0,111410.0,0.24301193]
[1761428322255,0.11299292,111420.0,111410.0,0.24301193]
[1761428322655,0.13716761,111420.0,111410.0,0.24301193]
[1761428335179,0.11299292,111420.0,111410.0,0.24301193]
[1761428336583,0.09961292,111420.0,111410.0,0.24301193]
[1761428336782,0.12378696,111420.0,111410.0,0.24301193]
[1761428340778,0.49806696,111420.0,111410.0,0.24301193]
[1761428340983,0.11309292,111420.0,111410.0,0.24301193]
[1761428341484,0.13726719,111420.0,111410.0,0.24301193]
[1761428345485,0.31859912,111420.0,111410.0,0.24301193]
[1761428346579,0.07043355,111420.0,111410.0,0.24301193]
[1761428346980,0.07043355,111420.0,111410.0,0.60381193]
[1761428347182,0.09312355,111420.0,111410.0,0.24301193]
[1761428347475,0.04860355,111420.0,111410.0,0.69356123]
[1761428347679,0.04860355,111420.0,111410.0,0.33276123]
[1761428347891,0.04860355,111420.0,111410.0,0.69356123]
[1761428353892,0.04860355,111420.0,111410.0,0.33276123]
[1761428354092,0.04860355,111420.0,111410.0,0.69356123]
[1761428354294,0.04860355,111420.0,111410.0,0.33276123]
[1761428354594,0.04860355,111420.0,111410.0,0.69356123]
[1761428354785,0.04860355,111420.0,111410.0,0.33276123]
[1761428354986,0.04860355,111420.0,111410.0,0.69356123]
[1761428355298,0.04860355,111420.0,111410.0,0.33276123]
[1761428355596,0.04860355,111420.0,111410.0,0.69356123]
[1761428357389,0.04860355,111420.0,111410.0,0.33276123]
[1761428357588,0.04860355,111420.0,111410.0,0.69356123]
[1761428357890,0.02442928,111420.0,111410.0,0.69356123]
[1761428360095,0.02442928,111420.0,111410.0,0.33276123]
[1761428360295,0.02442928,111420.0,111410.0,0.69356123]
[1761428360499,0.02442928,111420.0,111410.0,0.33276123]
[1761428360693,0.02442928,111420.0,111410.0,0.31257652]
[1761428364398,0.02442928,111420.0,111410.0,0.67337652]
[1761428367096,0.02442928,111420.0,111410.0,0.31257652]
[1761428368801,0.02442928,111420.0,111410.0,0.67337652]
[1761428369500,0.02442928,111420.0,111410.0,0.31257652]
[1761428369700,0.02442928,111420.0,111410.0,0.67337652]
[1761428370196,0.02442928,111420.0,111410.0,0.31257652]
[1761428370600,0.02442928,111420.0,111410.0,0.67337652]
[1761428370792,0.02442928,111420.0,111410.0,0.31257652]
[1761428370992,0.02442928,111420.0,111410.0,0.67337652]
[1761428371295,0.02617427,111420.0,111410.0,0.31257652]
[1761428371497,0.04860355,111420.0,111410.0,0.31257652]
[1761428375596,0.04860355,111420.0,111410.0,0.22282722]
[1761428378908,0.04860355,111420.0,111410.0,0.58362722]
[1761428379505,0.04860355,111420.0,111410.0,0.22282722]
[1761428379709,0.04860355,111420.0,111410.0,0.58362722]
[1761428380106,0.04860355,111420.0,111410.0,0.22282722]
[1761428381810,0.04860355,111420.0,111410.0,0.58362722]
[1761428383710,0.07136355,111420.0,111410.0,0.58362722]
[1761428384310,0.07136355,111420.0,111410.0,0.22282722]
[1761428384511,0.07136355,111420.0,111410.0,0.58362722]
[1761428385113,0.07136355,111420.0,111410.0,0.22282722]
[1761428385413,0.07136355,111420.0,111410.0,0.58362722]
[1761428385610,0.07136355,111420.0,111410.0,0.22282722]
[1761428385909,0.07136355,111420.0,111410.0,0.58362722]
[1761428386114,0.07136355,111420.0,111410.0,0.22282722]
[1761428386317,0.07136355,111420.0,111410.0,0.58362722]
[1761428387915,0.07136355,111420.0,111410.0,0.22282722]
[1761428388114,0.07136355,111420.0,111410.0,0.58362722]
[1761428388314,0.07136355,111420.0,111410.0,0.22282722]
[1761428388911,0.07136355,111420.0,111410.0,0.58362722]
[1761428389615,0.07136355,111420.0,111410.0,0.22282722]
[1761428389816,0.07136355,111420.0,111410.0,0.58362722]
[1761428390117,0.07136355,111420.0,111410.0,0.22282722]
[1761428390512,0.07136355,111420.0,111410.0,0.58362722]
[1761428391318,0.07136355,111420.0,111410.0,0.22282722]
[1761428391519,0.07136355,111420.0,111410.0,0.58362722]
[1761428395020,0.07136355,111420.0,111410.0,0.22282722]
[1761428395223,0.07136355,111420.0,111410.0,0.58362722]
[1761428396221,0.04860355,111420.0,111410.0,0.58362722]
[1761428396821,0.04860355,111420.0,111410.0,0.22282722]
[1761428397022,0.04860355,111420.0,111410.0,0.58362722]
[1761428398322,0.07136355,111420.0,111410.0,0.58362722]
[1761428398622,0.07136355,111420.0,111410.0,0.22282722]
[1761428398817,0.07136355,111420.0,111410.0,0.58362722]
[1761428399525,0.07136355,111420.0,111410.0,0.22282722]
[1761428399824,0.07136355,111420.0,111410.0,0.58362722]
[1761428400823,0.09425355,111420.0,111410.0,0.58362722]
[1761428401024,0.09425355,111420.0,111410.0,0.22282722]
[1761428402425,0.09425355,111420.0,111410.0,0.58362722]
[1761428402615,0.09425355,111420.0,111410.0,0.42248]
[1761428402822,0.10773355,111420.0,111410.0,0.42248]
[1761428403524,0.10773355,111420.0,111410.0,0.04885]
[1761428422834,0.28907466,111420.0,111410.0,0.23019111]
[1761428429648,0.28907466,111420.0,111410.0,0.24321111]
[1761428438863,0.28892978,111420.0,111410.0,0.24321111]
[1761428439469,0.27544978,111420.0,111410.0,0.24321111]
[1761428440664,0.10801867,111420.0,111410.0,0.24321111]
[1761428441167,0.28935978,111420.0,111410.0,0.24321111]
[1761428444071,0.32159342,111420.0,111410.0,0.24321111]
[1761428444460,0.12634231,111420.0,111410.0,0.24321111]
[1761428444764,0.04845867,111420.0,111410.0,0.60401111]
[1761428445667,0.06982867,111420.0,111410.0,0.60401111]
[1761428445967,0.04845867,111420.0,111410.0,0.60401111]
[1761428446466,0.04845867,111420.0,111410.0,0.87510152]
[1761428446769,0.04845867,111420.0,111410.0,0.69376041]
[1761428447066,0.0242738,111420.0,111410.0,0.69376041]
[1761428447266,0.0242738,111420.0,111410.0,0.33296041]
[1761428447469,0.0242738,111420.0,111410.0,0.69376041]
[1761428447966,0.0456438,111420.0,111410.0,0.69376041]
[1761428449567,0.0456438,111420.0,111410.0,0.33296041]
[1761428449770,0.0456438,111420.0,111410.0,0.69376041]
[1761428451175,0.0456438,111420.0,111410.0,0.33296041]
[1761428451473,0.0456438,111420.0,111410.0,1.29376041]
[1761428452167,0.0673538,111420.0,111410.0,1.29376041]
[1761428453576,0.0673538,111420.0,111410.0,0.93296041]
[1761428453776,0.0673538,111420.0,111410.0,1.29376041]
[1761428454274,0.0673538,111420.0,111410.0,0.93296041]
[1761428454475,0.0673538,111420.0,111410.0,1.29376041]
[1761428457577,0.0456438,111420.0,111410.0,1.29376041]
[1761428457878,0.0456438,111420.0,111410.0,0.93296041]
[1761428458177,0.0456438,111420.0,111410.0,1.29376041]
[1761428459180,0.0456438,111420.0,111410.0,0.93296041]
[1761428459374,0.0456438,111420.0,111410.0,1.29376041]
[1761428460281,0.0456438,111420.0,111410.0,0.93296041]
[1761428460578,0.0456438,111420.0,111410.0,1.29376041]
[1761428460780,0.0242738,111420.0,111410.0,1.29376041]
[1761428463682,0.0242738,111420.0,111410.0,0.93296041]
[1761428463982,0.0242738,111420.0,111410.0,1.29376041]
[1761428464183,0.0242738,111420.0,111410.0,0.93296041]
[1761428464682,0.0242738,111420.0,111410.0,1.29376041]
[1761428465083,0.0242738,111420.0,111410.0,0.93296041]
[1761428465285,0.0242738,111420.0,111410.0,1.29376041]
[1761428466181,0.0468138,111420.0,111410.0,0.93296041]
[1761428466388,0.0468138,111420.0,111410.0,1.29376041]
[1761428466584,0.0242738,111420.0,111410.0,0.69376041]
[1761428466788,0.0242738,111420.0,111410.0,0.33296041]
[1761428467686,0.0242738,111420.0,111410.0,0.69376041]
[1761428469889,0.0242738,111420.0,111410.0,0.33296041]
[1761428470187,0.0242738,111420.0,111410.0,0.69376041]
[1761428470489,0.0242738,111420.0,111410.0,0.33296041]
[1761428470689,0.0242738,111420.0,111410.0,0.69376041]
[1761428471688,0.0242738,111420.0,111410.0,1.29376041]
[1761428475394,0.0242738,111420.0,111410.0,0.93296041]
[1761428475593,0.0242738,111420.0,111410.0,1.29376041]
[1761428476794,0.0242738,111420.0,111410.0,0.69376041]
[1761428477399,0.0242738,111420.0,111410.0,0.33296041]
[1761428477797,0.0242738,111420.0,111410.0,0.69376041]
[1761428478095,0.0242738,111420.0,111410.0,0.33296041]
[1761428478596,0.0242738,111420.0,111410.0,0.69376041]
[1761428479696,0.0242738,111420.0,111410.0,0.33296041]
[1761428480098,0.0242738,111420.0,111410.0,0.69376041]
[1761428480290,0.0242738,111420.0,111410.0,0.33296041]
[1761428480996,0.0242738,111420.0,111410.0,0.69376041]
[1761428481197,0.0242738,111420.0,111410.0,0.33296041]
[1761428481498,0.0242738,111420.0,111410.0,1.29376041]
[1761428481700,0.0242738,111420.0,111410.0,0.93296041]
[1761428481997,0.0242738,111420.0,111410.0,1.29376041]
[1761428482598,0.0242738,111420.0,111410.0,0.93296041]
[1761428482801,0.0242738,111420.0,111410.0,1.27356192]
[1761428483189,0.0468138,111420.0,111410.0,0.91276192]
[1761428483386,0.0468138,111420.0,111410.0,1.27356192]
[1761428483696,0.0468138,111420.0,111410.0,0.91276192]
[1761428483896,0.0468138,111420.0,111410.0,1.27356192]
[1761428484192,0.0468138,111420.0,111410.0,0.91276192]
[1761428484700,0.0468138,111420.0,111410.0,1.27356192]
[1761428484892,0.0468138,111420.0,111410.0,0.91276192]
[1761428485203,0.0468138,111420.0,111410.0,1.27356192]
[1761428485698,0.0468138,111420.0,111410.0,0.91276192]
[1761428486093,0.0468138,111420.0,111410.0,1.27356192]
[1761428487301,0.0468138,111420.0,111410.0,0.91276192]
[1761428487609,0.0242738,111420.0,111410.0,1.27356192]
[1761428488501,0.0242738,111420.0,111410.0,0.91276192]
[1761428488702,0.0242738,111420.0,111410.0,1.27356192]
[1761428488896,0.0242738,111420.0,111410.0,1.18381262]
[1761428489301,0.0242738,111420.0,111410.0,0.82301262]
[1761428490001,0.0242738,111420.0,111410.0,1.18381262]
[1761428490502,0.0242738,111420.0,111410.0,0.82301262]
[1761428490800,0.0242738,111420.0,111410.0,1.18381262]
[1761428491098,0.0242738,111420.0,111410.0,0.82301262]
[1761428491302,0.0242738,111420.0,111410.0,1.18381262]
[1761428491500,0.0468138,111420.0,111410.0,1.18381262]
[1761428491908,0.0468138,111420.0,111410.0,0.82301262]
[1761428492905,0.0468138,111420.0,111410.0,1.18381262]
[1761428493105,0.0242738,111420.0,111410.0,1.18381262]
[1761428493903,0.0242738,111420.0,111410.0,0.82301262]
[1761428494100,0.0242738,111420.0,111410.0,1.18381262]
[1761428495597,0.0242738,111420.0,111410.0,0.82301262]
[1761428495902,0.0242738,111420.0,111410.0,1.18381262]
[1761428496704,0.0242738,111420.0,111410.0,0.82301262]
[1761428497201,0.0242738,111420.0,111410.0,1.02267]
[1761428497402,0.0242738,111420.0,111410.0,1.18381262]
[1761428499505,0.0242738,111420.0,111410.0,0.82301262]
[1761428499697,0.0242738,111420.0,111410.0,1.18381262]
[1761428500102,0.0242738,111420.0,111410.0,0.82301262]
[1761428500305,0.0242738,111420.0,111410.0,1.18381262]
[1761428501405,0.0242738,111420.0,111410.0,0.82301262]
[1761428501601,0.0242738,111420.0,111410.0,1.18381262]
[1761428502810,0.0242738,111420.0,111410.0,0.82301262]
[1761428503003,0.0242738,111420.0,111410.0,1.18381262]
[1761428506006,0.0242738,111420.0,111410.0,0.82301262]
[1761428506210,0.0242738,111420.0,111410.0,1.18381262]
[1761428507113,0.0242738,111420.0,111410.0,0.82301262]
[1761428507611,0.0242738,111420.0,111410.0,1.18381262]
[1761428508608,0.0242738,111420.0,111410.0,0.82301262]
[1761428508816,0.0242738,111420.0,111410.0,1.18381262]
[1761428509016,0.0242738,111420.0,111410.0,0.82301262]
[1761428509216,0.0242738,111420.0,111410.0,1.18381262]
[1761428510508,0.0242738,111420.0,111410.0,0.82301262]
[1761428510717,0.0242738,111420.0,111410.0,1.18381262]
[1761428511013,0.0694238,111420.0,111410.0,1.18381262]
[1761428512010,0.0694238,111420.0,111410.0,0.82301262]
[1761428512216,0.0694238,111420.0,111410.0,1.18381262]
[1761428514712,0.0694238,111420.0,111410.0,0.82301262]
[1761428515014,0.0694238,111420.0,111410.0,1.18381262]
[1761428515310,0.0694238,111420.0,111410.0,0.82301262]
[1761428515515,0.0694238,111420.0,111410.0,1.18381262]
[1761428517718,0.0694238,111420.0,111410.0,0.82301262]
[1761428517919,0.0694238,111420.0,111410.0,1.18381262]
[1761428518518,0.0694238,111420.0,111410.0,0.82301262]
[1761428518715,0.0821638,111420.0,111410.0,0.04885]
[1761428518915,0.46714867,111420.0,111410.0,0.36337]
[1761428519414,0.10634867,111420.0,111410.0,0.36337]
[1761428521519,0.46714867,111420.0,111410.0,0.36337]
[1761428522321,0.10634867,111420.0,111410.0,0.36337]
[1761428522522,0.46714867,111420.0,111410.0,0.36337]
[1761428525126,0.10634867,111420.0,111410.0,0.36337]
[1761428525321,0.46714867,111420.0,111410.0,0.36337]
[1761428526222,0.10634867,111420.0,111410.0,0.36337]
[1761428526613,0.46714867,111420.0,111410.0,0.36337]
[1761428529010,0.10634867,111420.0,111410.0,0.36337]
[1761428529214,0.46714867,111420.0,111410.0,0.36337]
[1761428529423,0.10634867,111420.0,111410.0,0.36337]
[1761428529716,0.46714867,111420.0,111410.0,0.37699]
[1761428529924,0.10634867,111420.0,111410.0,0.37699]
[1761428530317,0.46714867,111420.0,111410.0,0.37699]
[1761428530817,0.10634867,111420.0,111410.0,0.37699]
[1761428531021,0.46714867,111420.0,111410.0,0.37699]
[1761428531325,0.10634867,111420.0,111410.0,0.37699]
[1761428531527,0.46714867,111420.0,111410.0,0.37699]
[1761428533825,0.10634867,111420.0,111410.0,0.37699]
[1761428534026,0.46714867,111420.0,111410.0,0.37699]
[1761428534617,0.10634867,111420.0,111410.0,0.37699]
[1761428534817,0.46714867,111420.0,111410.0,0.37699]
[1761428535017,0.10634867,111420.0,111410.0,0.37699]
[1761428535221,0.46714867,111420.0,111410.0,0.37699]
[1761428535817,0.10634867,111420.0,111410.0,0.37699]
[1761428536230,0.46714867,111420.0,111410.0,0.37699]
[1761428537028,0.10634867,111420.0,111410.0,0.37699]
[1761428537431,0.46714867,111420.0,111410.0,0.37699]
[1761428538234,0.10634867,111420.0,111410.0,0.37699]
[1761428538735,0.46714867,111420.0,111410.0,0.37699]
[1761428539128,0.10634867,111420.0,111410.0,0.37699]
[1761428539329,0.46714867,111420.0,111410.0,0.37699]
[1761428539937,0.10634867,111420.0,111410.0,0.37699]
[1761428540628,0.46709122,111420.0,111410.0,0.37699]
[1761428542131,0.10629122,111420.0,111410.0,0.37699]
[1761428542328,0.46709122,111420.0,111410.0,0.37699]
[1761428542635,0.10629122,111420.0,111410.0,0.37699]
[1761428542837,0.46709122,111420.0,111410.0,0.37699]
[1761428544739,0.64843144,111420.0,111410.0,0.55833022]
[1761428544938,0.28763144,111420.0,111410.0,0.55833022]
[1761428545138,0.64843144,111420.0,111410.0,0.55833022]
[1761428545343,0.28763144,111420.0,111410.0,0.55833022]
[1761428545535,0.64843144,111420.0,111410.0,0.54471022]
[1761428546236,0.68066508,111420.0,111410.0,0.54471022]
[1761428546636,0.64843144,111420.0,111410.0,0.54471022]
[1761428547343,0.28763144,111420.0,111410.0,0.54471022]
[1761428547652,0.64843144,111420.0,111410.0,0.54471022]
[1761428547843,0.28763144,111420.0,111410.0,0.54471022]
[1761428548037,0.64843144,111420.0,111410.0,0.54471022]
[1761428549243,0.28763144,111420.0,111410.0,0.54471022]
[1761428549644,0.64843144,111420.0,111410.0,0.54471022]
[1761428549844,0.28763144,111420.0,111410.0,0.54471022]
[1761428550139,0.64843144,111420.0,111410.0,0.54471022]
[1761428550645,0.28763144,111420.0,111410.0,0.54471022]
[1761428550836,0.64843144,111420.0,111410.0,0.54471022]
[1761428551144,0.28763144,111420.0,111410.0,0.54471022]
[1761428551344,0.64843144,111420.0,111410.0,0.54471022]
[1761428551736,0.68066508,111420.0,111410.0,0.54471022]
[1761428553651,0.31986508,111420.0,111410.0,0.54471022]
[1761428554150,0.68066508,111420.0,111410.0,0.54471022]
[1761428554344,0.31986508,111420.0,111410.0,0.54471022]
[1761428554543,0.68066508,111420.0,111410.0,0.54471022]
[1761428554843,0.31986508,111420.0,111410.0,0.54471022]
[1761428555344,0.68066508,111420.0,111410.0,0.54471022]
[1761428558042,0.68066508,111420.0,111410.0,0.55772022]
[1761428559053,0.64843144,111420.0,111410.0,0.55772022]
[1761428559546,0.64843144,111420.0,111410.0,0.54471022]
[1761428561155,0.64843144,111420.0,111410.0,0.36337]
[1761428563456,0.68066508,111420.0,111410.0,0.36337]
[1761428564157,0.31986508,111420.0,111410.0,0.36337]
[1761428564456,0.68066508,111420.0,111410.0,0.36337]
[1761428565157,0.31986508,111420.0,111410.0,0.36337]
[1761428565550,0.64843144,111420.0,111410.0,0.36337]
[1761428565755,0.28763144,111420.0,111410.0,0.36337]
[1761428565955,0.64843144,111420.0,111410.0,0.36337]
[1761428566361,0.68066508,111420.0,111410.0,0.02586]
[1761428566657,0.65651558,111420.0,111410.0,0.02586]
[1761428567250,0.29571558,111420.0,111410.0,0.02586]
[1761428567452,0.65651558,111420.0,111410.0,0.02586]
[1761428568056,0.66552096,111420.0,111410.0,0.02586]
[1761428568558,0.61924096,111420.0,111410.0,0.02586]
[1761428568750,0.98004096,111420.0,111410.0,0.02586]
[1761428568945,1.0283368,111420.0,111410.0,0.02586]
[1761428569349,0.98004096,111420.0,111410.0,0.02586]
[1761428570359,0.61924096,111420.0,111410.0,0.02586]
[1761428570554,0.98004096,111420.0,111410.0,0.02586]
[1761428571758,0.61924096,111420.0,111410.0,0.02586]
[1761428571959,0.98004096,111420.0,111410.0,0.02586]
[1761428572359,0.98004096,111420.0,111410.0,0.04695]
[1761428573460,0.61924096,111420.0,111410.0,0.04695]
[1761428573661,0.98004096,111420.0,111410.0,0.04695]
[1761428574560,0.97103558,111420.0,111410.0,0.04695]
[1761428575460,0.97103558,111420.0,111410.0,0.02586]
[1761428576649,0.65853142,111420.0,111410.0,0.02586]
[1761428576855,1.01933142,111420.0,111410.0,0.02586]
[1761428577360,0.65853142,111420.0,111410.0,0.02586]
[1761428577666,1.01933142,111420.0,111410.0,0.02586]
[1761428578262,0.97103558,111420.0,111410.0,0.02586]
[1761428579463,0.97103558,111420.0,111410.0,0.0033]
[1761428580662,0.61023558,111420.0,111410.0,0.0033]
[1761428580862,0.97103558,111420.0,111410.0,0.0033]
[1761428581263,0.97103558,111420.0,111410.0,0.04882]
[1761428584266,0.97103558,111420.0,111410.0,0.0033]
[1761428584870,0.61023558,111420.0,111410.0,0.0033]
[1761428585170,0.97103558,111420.0,111410.0,0.0033]
[1761428585561,0.61023558,111420.0,111410.0,0.02645]
[1761428585965,0.97103558,111420.0,111410.0,0.02645]
[1761428586467,0.61023558,111420.0,111410.0,0.02645]
[1761428586658,0.97103558,111420.0,111410.0,0.02645]
[1761428587070,0.61023558,111420.0,111410.0,0.02645]
[1761428587269,0.97103558,111420.0,111410.0,0.02645]
[1761428587467,0.61023558,111420.0,111410.0,0.02645]
[1761428587663,0.97103558,111420.0,111410.0,0.02645]
[1761428588370,0.97103558,111420.0,111410.0,0.0033]
[1761428588771,0.61023558,111420.0,111410.0,0.0033]
[1761428588967,0.97268432,111420.0,111410.0,0.0033]
[1761428589562,0.61188432,111420.0,111410.0,0.0033]
[1761428589759,0.97268432,111420.0,111410.0,0.0033]
[1761428589961,0.61188432,111420.0,111410.0,0.0033]
[1761428590164,0.97268432,111420.0,111410.0,0.0033]
[1761428590466,0.61188432,111420.0,111410.0,0.0033]
[1761428590671,0.97268432,111420.0,111410.0,0.0033]
[1761428592770,0.61188432,111420.0,111410.0,0.0033]
[1761428592971,0.97268432,111420.0,111410.0,0.0033]
[1761428593170,0.61188432,111420.0,111410.0,0.0033]
[1761428593670,0.97268432,111420.0,111410.0,0.04809]
[1761428594270,0.97268432,111420.0,111410.0,0.02645]
[1761428594468,0.61188432,111420.0,111410.0,0.0033]
[1761428594665,0.97268432,111420.0,111410.0,0.0033]
[1761428595172,1.02098016,111420.0,111410.0,0.0033]
[1761428596975,0.66018016,111420.0,111410.0,0.0033]
[1761428597171,1.02098016,111420.0,111410.0,0.0033]
[1761428597373,0.97268432,111420.0,111410.0,0.0033]
[1761428597969,0.61188432,111420.0,111410.0,0.0033]
[1761428598376,0.97268432,111420.0,111410.0,0.0033]
[1761428598674,0.61188432,111420.0,111410.0,0.0033]
[1761428598876,0.97268432,111420.0,111410.0,0.0033]
[1761428599575,0.61188432,111420.0,111410.0,0.0033]
[1761428600078,0.97268432,111420.0,111410.0,0.0033]
[1761428600480,0.61188432,111420.0,111410.0,0.0033]
[1761428600671,0.97268432,111420.0,111410.0,0.0033]
[1761428601072,0.61188432,111420.0,111410.0,0.0033]
[1761428601681,0.97268432,111420.0,111410.0,0.0033]
[1761428602279,1.02098016,111420.0,111410.0,0.0033]
[1761428603882,1.02100533,111420.0,111410.0,0.0033]
[1761428604682,0.66020533,111420.0,111410.0,0.0033]
[1761428604884,1.02100533,111420.0,111410.0,0.0033]
[1761428605384,0.66020533,111420.0,111410.0,0.0033]
[1761428605587,1.02100533,111420.0,111410.0,0.0033]
[1761428606283,0.66020533,111420.0,111410.0,0.0033]
[1761428606475,1.02100533,111420.0,111410.0,0.0033]
[1761428606678,0.83966511,111420.0,111410.0,0.0033]
[1761428607289,0.47886511,111420.0,111410.0,0.0033]